bitfinex/quotes_BTCUSD_20230109
["timestamp","ask_amount","ask_price","bid_price","bid_amount"]
[1673284229995,3.92767627,17333.0,17332.0,0.02064946]
[1673284230241,4.51039572,17333.0,17332.0,0.02064946]
[1673284230485,5.03566779,17333.0,17332.0,0.02064946]
[1673284230742,4.51039572,17333.0,17332.0,0.02064946]
[1673284231745,4.24521837,17333.0,17332.0,0.02064946]
[1673284235346,4.24521837,17333.0,17332.0,0.02053582]
[1673284237348,4.72364627,17333.0,17332.0,0.02053582]
[1673284237594,4.82215237,17333.0,17332.0,0.02053582]
[1673284237871,5.61738775,17333.0,17332.0,0.02053582]
[1673284238125,5.04045375,17333.0,17332.0,0.02053582]
[1673284240575,3.0337286,17333.0,17332.0,0.02053582]
[1673284240834,2.76855125,17333.0,17332.0,0.02053582]
[1673284241888,1.0733454,17333.0,17332.0,0.02053582]
[1673284242141,0.5540999,17333.0,17332.0,0.02053582]
[1673284242634,1.0733454,17333.0,17332.0,0.02053582]
[1673284242898,0.5540999,17333.0,17332.0,0.02053582]
[1673284243156,0.5455999,17333.0,17332.0,0.70903042]
[1673284243411,0.98676466,17333.0,17332.0,0.87563042]
[1673284243661,0.97789146,17333.0,17332.0,1.6927267]
[1673284243914,0.6911873,17333.0,17332.0,1.6927267]
[1673284244170,0.6911873,17333.0,17332.0,1.8593267]
[1673284244442,0.60536609,17333.0,17332.0,2.8272937]
[1673284244697,0.60536609,17333.0,17332.0,3.6828607]
[1673284244698,0.17894962,17333.0,17332.0,3.6828607]
[1673284244913,0.43838891,17333.0,17332.0,3.6828607]
[1673284245205,0.17894962,17333.0,17332.0,3.6828607]
[1673284245530,0.17894962,17333.0,17332.0,3.68303212]
[1673284245724,0.006,17333.0,17332.0,3.68303212]
[1673284246000,0.17894962,17333.0,17332.0,3.68303212]
[1673284247525,0.006,17333.0,17332.0,3.68303212]
[1673284250585,0.006,17333.0,17332.0,3.22436884]
[1673284251074,0.006,17333.0,17332.0,3.68165682]
[1673284251326,0.006,17333.0,17332.0,3.68167851]
[1673284253362,0.006,17333.0,17332.0,4.25864551]
[1673284254352,0.006,17333.0,17332.0,3.80133584]
[1673284254868,0.006,17333.0,17332.0,4.25894652]
[1673284258397,0.006,17333.0,17332.0,4.09234652]
[1673284260465,0.006,17333.0,17332.0,4.09232148]
[1673284260976,0.006,17333.0,17332.0,3.63473584]
[1673284261484,0.006,17333.0,17332.0,4.09235555]
[1673284263761,0.006,17333.0,17332.0,3.46796442]
[1673284265520,0.006,17333.0,17332.0,4.09096771]
[1673284266022,1.72515311,17338.0,17333.0,1.02544406]
[1673284266272,0.0085,17337.0,17335.0,0.1666]
[1673284266533,0.0085,17337.0,17336.0,0.358338]
[1673284266534,0.58144962,17337.0,17336.0,0.358338]
[1673284266784,0.58144962,17337.0,17335.0,0.26340934]
[1673284267046,0.58144962,17337.0,17335.0,0.1666]
[1673284267554,0.58144962,17337.0,17335.0,0.1766]
[1673284267555,0.18144962,17337.0,17335.0,0.1766]
[1673284268329,0.18144962,17337.0,17335.0,0.1666]
[1673284268593,0.18144962,17337.0,17335.0,0.2746]
[1673284268854,0.18144962,17337.0,17335.0,0.94342389]
[1673284269662,0.0085,17337.0,17335.0,0.94342389]
[1673284269870,1.54836711,17338.0,17335.0,0.94342389]
[1673284270195,1.14836711,17338.0,17336.0,0.4]
[1673284270455,1.54836711,17338.0,17336.0,0.4]
[1673284270736,1.14836711,17338.0,17336.0,0.4]
[1673284271290,1.14936711,17338.0,17336.0,0.4]
[1673284271550,1.14836711,17338.0,17335.0,0.83542389]
[1673284271806,1.386045,17338.0,17336.0,0.003]
[1673284272063,0.57294962,17337.0,17336.0,0.003]
[1673284272310,0.4,17337.0,17336.0,0.003]
[1673284272565,0.96366151,17337.0,17336.0,0.003]
[1673284272816,1.77684956,17337.0,17336.0,0.003]
[1673284273072,1.94982674,17337.0,17336.0,0.003]
[1673284273327,1.94982674,17337.0,17335.0,0.072]
[1673284273632,0.79409362,17336.0,17334.0,0.1658]
[1673284273828,0.362216,17335.0,17334.0,0.1658]
[1673284274084,0.4,17334.0,17333.0,0.04760633]
[1673284274333,0.99989389,17334.0,17333.0,0.04760633]
[1673284274592,0.99989389,17334.0,17332.0,0.98848182]
[1673284274593,0.4,17334.0,17332.0,0.98848182]
[1673284274857,0.63767789,17334.0,17332.0,0.95348182]
[1673284275110,0.4,17334.0,17332.0,0.95348182]
[1673284275635,0.57243833,17334.0,17332.0,0.95348182]
[1673284275927,0.4,17334.0,17332.0,0.95348182]
[1673284276182,0.57243833,17334.0,17332.0,0.576946]
[1673284276410,0.401,17334.0,17333.0,0.141]
[1673284276655,0.401,17334.0,17332.0,0.576946]
[1673284276656,0.4,17334.0,17332.0,0.576946]
[1673284276917,0.401,17334.0,17332.0,0.716946]
[1673284277174,0.4,17334.0,17332.0,0.576946]
[1673284277437,0.57343833,17334.0,17333.0,0.141]
[1673284277698,0.57243833,17334.0,17332.0,0.576946]
[1673284278212,0.83287762,17334.0,17332.0,0.716946]
[1673284278479,0.57343833,17334.0,17332.0,0.576946]
[1673284278728,0.83287762,17334.0,17332.0,0.576967]
[1673284279490,0.83387762,17334.0,17333.0,0.141]
[1673284279737,1.00536609,17334.0,17332.0,0.576967]
[1673284279993,0.17276485,17333.0,17332.0,0.716967]
[1673284281249,0.83220414,17334.0,17332.0,0.576967]
[1673284281514,0.83220414,17334.0,17332.0,0.716967]
[1673284281515,0.001,17333.0,17332.0,0.716967]
[1673284281757,0.17376485,17333.0,17332.0,0.716967]
[1673284282269,0.17376485,17333.0,17332.0,0.576967]
[1673284282528,0.17276485,17333.0,17332.0,0.716967]
[1673284282783,0.17276485,17333.0,17332.0,0.576967]
[1673284283040,0.17276485,17333.0,17332.0,0.716967]
[1673284283292,0.17376485,17333.0,17332.0,1.293934]
[1673284284300,0.001,17333.0,17332.0,1.293934]
[1673284285048,0.001,17333.0,17332.0,1.693934]
[1673284286362,0.17376485,17333.0,17332.0,1.116967]
[1673284288353,0.25167794,17333.0,17332.0,1.116967]
[1673284288603,0.51111723,17333.0,17332.0,0.716967]
[1673284289110,0.17376485,17333.0,17332.0,0.716967]
[1673284289356,0.001,17333.0,17332.0,1.293934]
[1673284289625,0.001,17333.0,17332.0,1.652364]
[1673284289877,0.001,17333.0,17332.0,2.052364]
[1673284290891,0.001,17333.0,17332.0,1.693934]
[1673284291458,0.17376485,17333.0,17332.0,1.693934]
[1673284292454,0.17376485,17333.0,17332.0,0.716967]
[1673284292701,0.43320414,17333.0,17332.0,0.716967]
[1673284294007,0.77913094,17333.0,17332.0,0.716967]
[1673284294551,0.43320414,17333.0,17332.0,0.716967]
[1673284297611,0.60636609,17333.0,17332.0,0.14]
[1673284297864,0.4332974,17333.0,17332.0,0.14]
[1673284298138,0.7792242,17333.0,17332.0,0.14]
[1673284298400,0.76755499,17333.0,17332.0,0.14]
[1673284298655,0.60636609,17333.0,17332.0,0.14]
[1673284299173,0.43329621,17333.0,17332.0,0.14]
[1673284300995,0.60636609,17333.0,17332.0,0.14]
[1673284301534,0.90619562,17333.0,17332.0,0.1399199]
[1673284303025,0.7790376,17333.0,17332.0,0.1399199]
[1673284303542,0.4331108,17333.0,17332.0,0.1399199]
[1673284304044,0.7790376,17333.0,17332.0,0.1399199]
[1673284304365,0.4331108,17333.0,17332.0,0.1399199]
[1673284305091,0.4331108,17333.0,17332.0,0.7168869]
[1673284307643,0.7790376,17333.0,17332.0,0.7168869]
[1673284307899,0.77902112,17333.0,17332.0,0.7168869]
[1673284308406,0.60619562,17333.0,17332.0,0.7168869]
[1673284308918,0.78954919,17333.0,17332.0,0.7168869]
[1673284309166,0.60619562,17333.0,17332.0,0.7168869]
[1673284309459,0.43308828,17333.0,17332.0,0.7168869]
[1673284309672,0.60619562,17333.0,17332.0,0.7168869]
[1673284309918,0.43302128,17333.0,17332.0,0.7168869]
[1673284311711,0.60619562,17333.0,17332.0,0.7168869]
[1673284312220,0.43305606,17333.0,17332.0,1.2938539]
[1673284312790,0.17378724,17333.0,17332.0,1.6938539]
[1673284313081,0.17378724,17333.0,17332.0,2.30231942]
[1673284314588,0.17378724,17333.0,17332.0,2.66075242]
[1673284315941,0.17378724,17333.0,17332.0,2.3039588]
[1673284316173,0.001,17333.0,17332.0,2.3039588]
[1673284316417,0.17378724,17333.0,17332.0,2.3039588]
[1673284317496,0.001,17333.0,17332.0,2.6623918]
[1673284318281,0.001,17333.0,17332.0,3.2393588]
[1673284318530,0.001,17333.0,17332.0,3.86366817]
[1673284318783,0.001,17333.0,17332.0,4.03538674]
[1673284319309,0.001,17333.0,17332.0,4.29359681]
[1673284320083,0.001,17333.0,17332.0,4.03538674]
[1673284321164,0.001,17333.0,17332.0,4.99933392]
[1673284321424,0.001,17333.0,17332.0,5.17186924]
[1673284321928,0.001,17333.0,17332.0,5.33726924]
[1673284322219,0.001,17333.0,17332.0,5.7657463]
[1673284322532,0.001,17333.0,17332.0,5.50753623]
[1673284322803,0.001,17333.0,17332.0,5.67413623]
[1673284323058,0.001,17333.0,17332.0,5.32988234]
[1673284323308,0.43205606,17338.0,17333.0,0.94432623]
[1673284323563,0.43205606,17338.0,17336.0,0.1664]
[1673284323872,0.43215024,17338.0,17337.0,0.3584839]
[1673284324126,0.43215024,17338.0,17337.0,1.60889524]
[1673284324387,0.44063603,17339.0,17337.0,1.5120799]
[1673284324630,0.44063603,17339.0,17338.0,0.4]
[1673284324913,0.44063603,17339.0,17338.0,1.07357634]
[1673284325176,0.18136721,17339.0,17338.0,1.718734]
[1673284325939,0.18136721,17339.0,17338.0,1.781734]
[1673284326204,0.18136721,17339.0,17338.0,1.718734]
[1673284326460,0.18136721,17339.0,17338.0,1.854734]
[1673284326720,0.00848579,17339.0,17338.0,1.854734]
[1673284327949,0.00848579,17339.0,17338.0,2.789789]
[1673284328469,0.00848579,17339.0,17338.0,3.18276969]
[1673284329012,0.00848579,17339.0,17338.0,3.32276969]
[1673284329485,0.00848579,17339.0,17338.0,3.77868247]
[1673284329769,0.00848579,17339.0,17338.0,3.32276969]
[1673284330022,0.00848579,17339.0,17338.0,3.77868247]
[1673284330292,0.00848579,17339.0,17338.0,3.77868274]
[1673284331045,0.00848579,17339.0,17338.0,3.32276969]
[1673284331300,0.00848579,17339.0,17338.0,3.18276969]
[1673284331541,0.00848579,17339.0,17338.0,2.96448169]
[1673284331788,0.00848579,17339.0,17338.0,2.24771469]
[1673284332030,0.00848579,17339.0,17338.0,2.38771469]
[1673284333786,0.00848579,17339.0,17338.0,2.74600069]
[1673284334036,0.00848579,17339.0,17338.0,2.38771469]
[1673284337034,0.00848579,17339.0,17338.0,2.22251469]
[1673284337768,0.52551368,17339.0,17338.0,0.716767]
[1673284338026,0.78524045,17339.0,17338.0,0.14]
[1673284338310,1.14745645,17339.0,17338.0,0.14]
[1673284339784,1.15595645,17339.0,17338.0,0.14]
[1673284341043,0.91264038,17339.0,17338.0,0.14]
[1673284342611,1.0855218,17339.0,17338.0,0.14]
[1673284346722,1.33979062,17339.0,17338.0,0.14]
[1673284346977,1.2466218,17339.0,17338.0,0.14]
[1673284347488,1.50589062,17339.0,17338.0,0.14]
[1673284348333,1.88355978,17339.0,17338.0,0.14]
[1673284348581,2.63333916,17339.0,17338.0,0.14]
[1673284349092,2.05660516,17339.0,17338.0,0.14]
[1673284349341,2.63333916,17339.0,17338.0,0.14]
[1673284349597,2.25567,17339.0,17338.0,0.14]
[1673284349857,2.25567,17339.0,17335.0,2.24710551]
[1673284350106,0.528816,17338.0,17335.0,2.24710351]
[1673284350362,1.00620462,17337.0,17335.0,1.153688]
[1673284350685,0.362216,17336.0,17334.0,1.20255536]
[1673284350867,0.362216,17335.0,17334.0,1.20255536]
[1673284351120,0.23767789,17336.0,17334.0,1.60412092]
[1673284351368,1.10244903,17337.0,17335.0,0.139]
[1673284351653,1.10244903,17337.0,17334.0,1.55533256]
[1673284351654,1.10144903,17337.0,17334.0,1.55533256]
[1673284351890,1.36071785,17337.0,17334.0,1.55533256]
[1673284352145,0.001,17336.0,17335.0,0.4]
[1673284352392,0.96071785,17337.0,17334.0,1.553767]
[1673284352665,0.96171785,17337.0,17335.0,0.139]
[1673284352928,0.49607179,17336.0,17334.0,1.553767]
[1673284353196,0.49607179,17336.0,17334.0,1.55533256]
[1673284353423,0.57246814,17336.0,17334.0,1.55533256]
[1673284353947,0.57246814,17336.0,17334.0,1.69433256]
[1673284354201,1.36171785,17337.0,17334.0,2.31053699]
[1673284354501,0.001,17336.0,17334.0,2.44953699]
[1673284354709,0.001,17336.0,17335.0,0.4]
[1673284355205,1.36071785,17337.0,17335.0,0.4]
[1673284355473,1.20026369,17337.0,17335.0,0.4]
[1673284355719,1.20026369,17337.0,17335.0,0.576865]
[1673284356207,1.20026369,17337.0,17335.0,0.976865]
[1673284356208,0.94099487,17337.0,17335.0,0.976865]
[1673284356724,0.54099487,17337.0,17335.0,0.976865]
[1673284357225,0.59833696,17338.0,17336.0,0.59661097]
[1673284357473,0.43173696,17338.0,17337.0,0.358319]
[1673284357728,0.79002275,17339.0,17337.0,0.00149885]
[1673284357983,0.79002275,17339.0,17337.0,0.6920349]
[1673284358224,0.001,17338.0,17337.0,0.99522556]
[1673284358729,0.00348579,17339.0,17338.0,0.59490266]
[1673284358983,0.00448579,17339.0,17338.0,1.40968979]
[1673284359229,0.00448579,17339.0,17338.0,2.55195679]
[1673284359230,0.00348579,17339.0,17338.0,2.55195679]
[1673284360462,0.00348579,17339.0,17338.0,2.78635679]
[1673284360713,0.00348579,17339.0,17338.0,3.36312379]
[1673284362723,0.00348579,17339.0,17338.0,3.93989079]
[1673284363733,0.00348579,17339.0,17338.0,3.87089079]
[1673284363976,0.00348579,17339.0,17338.0,4.01089079]
[1673284363977,0.00448579,17339.0,17338.0,4.01089079]
[1673284364230,0.00348579,17339.0,17338.0,4.01089079]
[1673284365719,0.00348579,17339.0,17338.0,4.35033679]
[1673284365980,0.00348579,17339.0,17338.0,5.28942647]
[1673284366220,0.00329039,17340.0,17339.0,0.14706578]
[1673284366467,0.00329039,17340.0,17339.0,3.2365722]
[1673284366711,0.00329039,17340.0,17339.0,3.59641073]
[1673284366958,0.00329039,17340.0,17339.0,3.85567972]
[1673284367200,0.00329039,17340.0,17339.0,4.53506158]
[1673284367449,0.00810623,17341.0,17340.0,0.4]
[1673284367697,0.00810623,17341.0,17340.0,1.18627603]
[1673284367946,0.00810623,17341.0,17340.0,3.27461603]
[1673284368678,0.00810623,17341.0,17340.0,3.84087928]
[1673284369691,0.00810623,17341.0,17340.0,3.97987928]
[1673284371969,0.00810623,17341.0,17340.0,3.52530325]
[1673284371970,0.24578412,17341.0,17340.0,3.52530325]
[1673284372223,0.00810623,17341.0,17340.0,3.35900325]
[1673284384626,0.00910623,17341.0,17340.0,3.81384677]
[1673284384879,0.00810623,17341.0,17340.0,3.81384677]
[1673284385123,0.00810623,17341.0,17340.0,3.35900325]
[1673284385372,0.00810623,17341.0,17340.0,3.81423932]
[1673284385626,0.00810623,17341.0,17340.0,3.35900325]
[1673284386904,0.00810623,17341.0,17340.0,3.81372491]
[1673284387148,0.00810623,17341.0,17340.0,3.97952491]
[1673284388727,0.00910623,17341.0,17340.0,3.97952491]
[1673284388987,0.00810623,17341.0,17340.0,3.97952491]
[1673284390552,0.00810623,17341.0,17340.0,4.14612491]
[1673284390817,0.0091621,17342.0,17341.0,0.97007954]
[1673284391057,0.0091621,17342.0,17341.0,3.03248354]
[1673284391306,0.0091621,17342.0,17341.0,3.84522566]
[1673284392843,0.0091621,17342.0,17341.0,3.98422566]
[1673284395165,0.0091621,17342.0,17341.0,3.98395233]
[1673284395445,0.0091621,17342.0,17341.0,3.98384786]
[1673284395695,0.0091621,17342.0,17341.0,3.52969654]
[1673284396460,0.0091621,17342.0,17341.0,3.5297716]
[1673284399024,0.0091621,17342.0,17341.0,3.1973716]
[1673284399816,0.0091621,17342.0,17341.0,3.3639716]
[1673284400841,0.0091621,17342.0,17341.0,3.53622706]
[1673284401863,0.0091621,17342.0,17341.0,3.79549605]
[1673284402082,0.0091621,17342.0,17341.0,3.53622706]
[1673284403386,0.0091621,17342.0,17341.0,4.47633702]
[1673284405989,0.0091621,17342.0,17341.0,4.82202901]
[1673284406242,0.0091621,17342.0,17341.0,4.47633702]
[1673284407267,0.0091621,17342.0,17341.0,4.64977355]
[1673284407520,0.0091621,17342.0,17341.0,5.09345868]
[1673284408575,0.0091621,17342.0,17341.0,4.64977355]
[1673284408849,0.0091621,17342.0,17341.0,4.48317355]
[1673284410130,0.0091621,17342.0,17341.0,4.92670597]
[1673284410371,0.0091621,17342.0,17341.0,5.35882096]
[1673284410620,0.0091621,17342.0,17341.0,4.92670597]
[1673284410875,0.0091621,17342.0,17341.0,4.48317355]
[1673284411123,0.0091621,17342.0,17341.0,4.92663419]
[1673284411372,0.0091621,17342.0,17341.0,4.48317355]
[1673284412389,0.0091621,17342.0,17341.0,4.30956613]
[1673284414930,0.0091621,17342.0,17341.0,4.48317355]
[1673284415186,0.00904754,17342.0,17341.0,4.92678479]
[1673284416969,0.00904754,17342.0,17341.0,5.52529978]
[1673284417221,0.00857032,17343.0,17342.0,1.08862911]
[1673284417473,0.00857032,17343.0,17342.0,2.97540823]
[1673284417736,0.00857032,17343.0,17342.0,5.06349823]
[1673284418548,0.00857032,17343.0,17342.0,5.40694229]
[1673284418801,0.00857032,17343.0,17342.0,5.54594229]
[1673284419064,0.00857032,17343.0,17342.0,5.37385757]
[1673284419393,0.00857032,17343.0,17342.0,5.54594229]
[1673284419574,0.00857032,17343.0,17342.0,5.20180743]
[1673284420077,0.00857032,17343.0,17342.0,6.06354837]
[1673284420847,0.00857032,17343.0,17342.0,5.20180743]
[1673284422105,0.00857032,17343.0,17342.0,6.06347969]
[1673284422360,0.00857032,17343.0,17342.0,5.20180743]
[1673284422615,0.00857032,17343.0,17342.0,5.63332774]
[1673284422878,0.00857032,17343.0,17342.0,6.3632411]
[1673284423124,0.00857032,17343.0,17342.0,5.63332774]
[1673284423639,0.00857032,17343.0,17342.0,5.09652378]
[1673284423891,0.00857032,17343.0,17342.0,5.68383309]
[1673284425149,0.00857032,17343.0,17342.0,5.25209829]
[1673284425405,0.00857032,17343.0,17342.0,6.11376424]
[1673284426163,0.00857032,17343.0,17342.0,5.69305493]
[1673284426415,0.00857032,17343.0,17342.0,5.72641961]
[1673284427677,0.00857032,17343.0,17342.0,7.08304553]
[1673284427930,0.00857032,17343.0,17342.0,6.94404553]
[1673284428199,0.00857032,17343.0,17342.0,7.19404553]
[1673284428449,0.00857032,17343.0,17342.0,8.93304553]
[1673284428699,0.00884421,17344.0,17343.0,0.54895574]
[1673284428949,0.00884421,17344.0,17343.0,4.67342523]
[1673284429197,0.00884421,17344.0,17343.0,5.37534954]
[1673284429701,0.00884421,17344.0,17343.0,5.62534954]
[1673284429948,0.00884421,17344.0,17343.0,5.76434954]
[1673284430988,0.00884421,17344.0,17343.0,5.59774954]
[1673284431814,0.00884421,17344.0,17343.0,5.42586192]
[1673284432047,0.00884421,17344.0,17343.0,5.85553962]
[1673284432301,0.00884421,17344.0,17343.0,5.4258587]
[1673284432566,0.00884421,17344.0,17343.0,5.85553584]
[1673284432829,0.00884421,17344.0,17343.0,5.42585814]
[1673284433332,0.00884421,17344.0,17343.0,5.59774954]
[1673284434251,0.00884421,17344.0,17343.0,5.25398923]
[1673284434252,0.00884421,17344.0,17343.0,5.04392584]
[1673284434861,0.00884421,17344.0,17343.0,5.61791511]
[1673284435113,0.00884421,17344.0,17343.0,5.9614791]
[1673284436437,0.00884421,17344.0,17343.0,5.6614607]
[1673284436969,0.00884421,17344.0,17343.0,5.48944999]
[1673284437324,0.00910934,17345.0,17344.0,0.40742104]
[1673284437573,0.00910934,17345.0,17344.0,3.54401364]
[1673284437827,0.00910934,17345.0,17344.0,3.45991649]
[1673284438335,0.00910934,17345.0,17344.0,4.15215273]
[1673284438640,0.00910934,17345.0,17344.0,4.15214715]
[1673284438893,0.00910934,17345.0,17344.0,4.29114715]
[1673284439396,0.00910934,17345.0,17344.0,3.84891649]
[1673284439952,0.00910934,17345.0,17344.0,5.2036539]
[1673284440451,0.00910934,17345.0,17344.0,5.54719949]
[1673284440708,0.00910934,17345.0,17344.0,5.37543409]
[1673284440977,0.00910934,17345.0,17344.0,6.01404395]
[1673284441500,0.00637934,17345.0,17344.0,5.67049836]
[1673284441760,0.00637934,17345.0,17344.0,6.01389779]
[1673284442021,0.00637934,17345.0,17344.0,5.71389779]
[1673284443103,0.00637934,17345.0,17344.0,5.38621074]
[1673284443367,0.00631274,17345.0,17344.0,5.67315357]
[1673284443640,0.00631274,17345.0,17344.0,4.90381131]
[1673284443932,0.00631274,17345.0,17344.0,5.57248503]
[1673284444204,0.00631274,17345.0,17344.0,5.04281131]
[1673284444468,0.00631274,17345.0,17344.0,5.20875667]
[1673284444723,0.00631274,17345.0,17344.0,5.47413693]
[1673284444985,0.00931155,17346.0,17345.0,0.40981362]
[1673284445271,0.00931155,17346.0,17345.0,5.33275781]
[1673284445527,0.00931155,17346.0,17345.0,6.46741036]
[1673284445773,0.00931155,17346.0,17345.0,6.13163473]
[1673284446019,0.00931155,17346.0,17345.0,5.13163473]
[1673284446276,0.00931155,17346.0,17345.0,5.76507465]
[1673284446783,0.00931155,17346.0,17345.0,5.90407465]
[1673284447809,0.00877182,17349.0,17345.0,7.57129311]
[1673284448060,0.00877182,17349.0,17347.0,1.63107653]
[1673284448318,0.00877182,17349.0,17347.0,5.20607227]
[1673284448575,0.00877182,17349.0,17347.0,4.90607227]
[1673284448854,0.00877182,17349.0,17347.0,4.74017227]
[1673284449091,0.00877182,17349.0,17347.0,4.99017227]
[1673284449341,0.00877182,17349.0,17347.0,5.29017227]
[1673284449591,0.00877182,17349.0,17347.0,7.20639702]
[1673284449853,0.00877182,17349.0,17347.0,7.03473227]
[1673284450103,0.00877182,17349.0,17347.0,6.73473227]
[1673284450624,0.00877182,17349.0,17347.0,7.33101994]
[1673284450882,0.00877182,17349.0,17347.0,7.63101994]
[1673284451147,0.00877182,17349.0,17347.0,7.88788752]
[1673284451416,0.00877182,17349.0,17348.0,1.04500411]
[1673284451656,0.00877182,17349.0,17348.0,3.88481917]
[1673284451911,0.00877182,17349.0,17348.0,4.37147764]
[1673284452171,0.00877182,17349.0,17348.0,4.19995074]
[1673284452428,0.00877182,17349.0,17348.0,4.32135309]
[1673284452683,0.00877182,17349.0,17348.0,4.76035309]
[1673284452931,0.00877182,17349.0,17348.0,5.50815603]
[1673284453195,0.00877182,17349.0,17348.0,4.86315192]
[1673284453456,0.00877182,17349.0,17348.0,5.47105192]
[1673284453710,0.01050854,17350.0,17349.0,0.4]
[1673284453973,0.01050854,17350.0,17349.0,7.24405724]
[1673284454266,0.01050854,17350.0,17349.0,7.27640826]
[1673284454497,0.01050854,17350.0,17349.0,8.27860473]
[1673284454498,5.4e-07,17350.0,17349.0,8.27860473]
[1673284454750,0.01149341,17352.0,17349.0,7.89824762]
[1673284455012,0.01149341,17352.0,17350.0,4.92991552]
[1673284455318,0.01149341,17352.0,17350.0,6.44064552]
[1673284455576,0.01149341,17352.0,17350.0,6.29055273]
[1673284455838,0.01149341,17352.0,17350.0,5.60076987]
[1673284456097,0.01149341,17352.0,17350.0,6.89918399]
[1673284456354,0.01149341,17352.0,17350.0,7.14918399]
[1673284456619,0.01149341,17352.0,17350.0,6.79826987]
[1673284456899,0.01149341,17352.0,17350.0,6.83075895]
[1673284457117,0.01149341,17352.0,17351.0,4.50939489]
[1673284457367,0.01297655,17354.0,17352.0,0.40905919]
[1673284457627,1.19042305,17360.0,17354.0,0.4]
[1673284457914,1.19042305,17360.0,17355.0,2.64834424]
[1673284458247,0.4,17359.0,17356.0,0.96187056]
[1673284458428,0.3998002,17359.0,17356.0,0.49680934]
[1673284458680,0.3998002,17359.0,17357.0,0.57624818]
[1673284458940,0.3998002,17359.0,17357.0,1.15238418]
[1673284459451,0.3998002,17359.0,17357.0,1.40238418]
[1673284459947,0.3998002,17359.0,17357.0,1.53238418]
[1673284460199,0.3998002,17359.0,17357.0,2.06478062]
[1673284462056,0.1665,17358.0,17357.0,2.06478062]
[1673284462291,0.528716,17358.0,17357.0,2.06478062]
[1673284462552,0.1665,17358.0,17357.0,2.06478062]
[1673284462803,0.695316,17358.0,17357.0,0.38]
[1673284463361,1.05690171,17358.0,17357.0,0.25]
[1673284463578,1.05690171,17358.0,17357.0,0.38]
[1673284464350,0.528816,17358.0,17357.0,0.38]
[1673284464593,0.1666,17358.0,17357.0,0.38]
[1673284464849,0.528816,17358.0,17357.0,0.38]
[1673284465104,0.29946172,17358.0,17357.0,0.38]
[1673284465358,0.694316,17358.0,17357.0,0.38]
[1673284466019,1.05051473,17358.0,17357.0,0.38]
[1673284468031,1.04551473,17358.0,17357.0,0.38]
[1673284469891,1.04551473,17358.0,17357.0,0.38075631]
[1673284470605,1.04551473,17358.0,17357.0,0.38]
[1673284470893,1.19004622,17358.0,17357.0,0.38]
[1673284471160,1.04551473,17358.0,17357.0,0.38]
[1673284472942,1.04551473,17358.0,17357.0,0.38068195]
[1673284473199,1.04551473,17358.0,17357.0,0.38]
[1673284473459,1.04544813,17358.0,17357.0,0.38]
[1673284475289,0.87734841,17359.0,17357.0,0.38]
[1673284475548,1.40947432,17358.0,17357.0,0.38]
[1673284475800,3.98111687,17358.0,17357.0,0.38]
[1673284476050,6.23877021,17358.0,17357.0,0.38]
[1673284476374,5.95075044,17358.0,17357.0,0.38]
[1673284476574,5.89284341,17358.0,17357.0,0.25]
[1673284476826,6.45907865,17358.0,17357.0,0.25]
[1673284477083,7.09637674,17358.0,17357.0,0.25]
[1673284477339,6.55876859,17358.0,17357.0,0.19228538]
[1673284477591,6.55876859,17358.0,17357.0,0.18128538]
[1673284477872,6.55876859,17358.0,17354.0,0.04871592]
[1673284478145,2.16042212,17357.0,17356.0,0.25]
[1673284478403,4.08969073,17357.0,17356.0,0.25]
[1673284478679,5.24196273,17357.0,17354.0,0.04871592]
[1673284478913,0.9300717,17355.0,17354.0,0.04871592]
[1673284479176,1.03377368,17355.0,17354.0,0.04871592]
[1673284479443,1.03377368,17355.0,17354.0,7.002e-05]
[1673284479691,0.694905,17355.0,17353.0,0.5047877]
[1673284479956,0.9976717,17356.0,17354.0,0.01]
[1673284480230,0.693705,17355.0,17354.0,0.09680934]
[1673284480512,0.362105,17355.0,17354.0,0.53486274]
[1673284480772,0.567,17356.0,17354.0,0.53486274]
[1673284481316,0.567,17356.0,17354.0,1.20790608]
[1673284481771,0.567,17356.0,17354.0,1.11109674]
[1673284482020,0.567,17356.0,17354.0,1.10909674]
[1673284482559,0.567,17356.0,17354.0,1.24309674]
[1673284482826,0.567,17356.0,17354.0,1.24302672]
[1673284483043,1.13306467,17357.0,17354.0,1.81926272]
[1673284483291,0.87466165,17357.0,17354.0,1.91607206]
[1673284483548,0.87466165,17357.0,17354.0,1.81926272]
[1673284483801,1.13306467,17357.0,17355.0,0.00126756]
[1673284484058,1.13306467,17357.0,17355.0,0.57746756]
[1673284484059,0.87466165,17357.0,17355.0,0.57746756]
[1673284484312,0.362105,17356.0,17355.0,0.57746756]
[1673284484559,0.87466165,17357.0,17355.0,0.57746756]
[1673284484813,1.03914761,17357.0,17355.0,0.57746756]
[1673284485073,0.87466165,17357.0,17355.0,0.57746756]
[1673284485345,0.87466165,17357.0,17355.0,1.15366956]
[1673284485571,0.362105,17356.0,17355.0,1.152402]
[1673284485824,0.4,17356.0,17355.0,1.152402]
[1673284486078,0.57226868,17356.0,17355.0,1.292402]
[1673284486376,1.13306467,17357.0,17355.0,1.152402]
[1673284486629,0.17226868,17356.0,17355.0,1.286402]
[1673284486857,1.13306467,17357.0,17355.0,1.286402]
[1673284487106,1.13306467,17357.0,17355.0,1.28659841]
[1673284487627,0.662105,17356.0,17355.0,1.286402]
[1673284487868,0.65178565,17356.0,17355.0,1.286402]
[1673284488130,0.47226868,17356.0,17355.0,1.152402]
[1673284488391,0.47226868,17356.0,17355.0,1.286402]
[1673284488640,0.47226868,17356.0,17355.0,0.576202]
[1673284488906,1.0927767,17356.0,17355.0,0.134]
[1673284489418,1.68718623,17356.0,17355.0,0.134]
[1673284490445,1.43020291,17356.0,17355.0,0.134]
[1673284490703,1.25844585,17356.0,17355.0,0.134]
[1673284492789,1.00004283,17356.0,17355.0,0.134]
[1673284493317,0.63793783,17356.0,17355.0,0.70752237]
[1673284493568,1.13849088,17357.0,17355.0,1.95010564]
[1673284493569,0.99754085,17357.0,17355.0,1.95010564]
[1673284493855,0.17253783,17357.0,17355.0,1.95010564]
[1673284494161,0.17253783,17357.0,17355.0,1.8532963]
[1673284494412,0.77019791,17358.0,17355.0,1.8532963]
[1673284494413,0.99844085,17358.0,17355.0,1.8532963]
[1673284494669,0.99844085,17358.0,17355.0,1.95010564]
[1673284494924,0.99844085,17358.0,17355.0,1.81610564]
[1673284495172,0.99844085,17358.0,17355.0,1.8592963]
[1673284495437,0.99844085,17358.0,17355.0,1.7192963]
[1673284495719,0.99844085,17358.0,17355.0,1.8592963]